Cogmind - Beta 13 @@@ ROGUE MODE // 2024.07.06 @ 14:51:39 Player: StinksBinx Result: Destroyed by G-47 Trooper with Particle Gun Performance ------------- Evolutions (2) 1000 Regions Visited (4) 800 Robots Destroyed (31) 155 Value Destroyed (759) 759 Prototype IDs (0) 0 Alien Tech Used (0) 0 Bonus (0) 0 TOTAL SCORE: 2714 Bonus ------- None Cogmind --------- Core Integrity 0/550 Matter 293/300 Energy 100/100 System Corruption 0% Temperature Cool (9) Movement Core (200) Ox3 Location -8/Materials Parts ------- > --- POWER (2) -------- (None) > --- PROPULSION (2) --- (None) > --- UTILITY (5) ------ Medium Storage Unit Visual Processing Unit > --- WEAPON (2) ------- (None) > --- INVENTORY (10) --- Heat Sink Compact Battery (200) Medium Matter Pod (100) Hardened Light Armor Plating Hardened Medium Armor Plating Shield Generator Minigun Peak State ------------ > --- POWER ------------ Light Ion Engine > --- PROPULSION ------- Light Treads Light Treads > --- UTILITY ---------- Medium Storage Unit Sensor Array Hardened Medium Armor Plating Hardened Medium Armor Plating Shield Generator > --- WEAPON ----------- Heavy Assault Rifle Minigun > --- INVENTORY -------- Light Treads Heat Sink Compact Battery Medium Matter Pod Visual Processing Unit Hardened Light Armor Plating Hardened Medium Armor Plating Minigun [Rating: 19] Favorites ----------- Power Light Ion Engine Engine Light Ion Engine Propulsion Light Treads Treads Light Treads Utility Hardened Medium Armor Plating Device Sensor Array Storage Medium Storage Unit Processor Visual Processing Unit Protection Hardened Medium Armor Plating Weapon Minigun Ballistic Gun Minigun Launcher Grenade Launcher Build | -11 -10 -10 -9 -8 ------- Run | Yrd Mat Min Mat Mat Slots Evolved 4 | . . . 2 2 Power 1 | . . . . 1 Propulsion . | . . . . . Utility 3 | . . . 2 1 Weapon . | . . . . . Parts Attached 27 | 5 1 . 16 5 Power 2 | 1 . . 1 . Engine 2 | 1 . . 1 . Core . | . . . . . Reactor . | . . . . . Propulsion 5 | 2 . . 2 1 Treads 5 | 2 . . 2 1 Leg . | . . . . . Wheel . | . . . . . Hover . | . . . . . Flight . | . . . . . Utility 15 | 1 . . 10 4 Device 5 | . . . 2 3 Storage 3 | 1 . . 2 . Processor 1 | . . . . 1 Hackware . | . . . . . Protection 6 | . . . 6 . Artifact . | . . . . . Weapon 5 | 1 1 . 3 . Energy Gun . | . . . . . Energy Cannon . | . . . . . Ballistic Gun 4 | 1 . . 3 . Ballistic Cannon . | . . . . . Launcher 1 | . 1 . . . Special Weapon . | . . . . . Impact Weapon . | . . . . . Slashing Weapon . | . . . . . Piercing Weapon . | . . . . . Special Melee Weapon . | . . . . . Unidentified Prototypes . | . . . . . Parts Lost 12 | . . . 2 10 Power 2 | . . . 1 1 Propulsion 3 | . . . . 3 Utility 4 | . . . . 4 Weapon 3 | . . . 1 2 Highest Loss Streak 5 | . . . 2 5 To Critical Strikes . | . . . . . Average Slot Usage (%) 87 | . 83 85 97 66 Engine 9 | . 14 14 10 4 Treads 20 | . 28 28 22 11 Device 7 | . . . 10 6 Storage 10 | . 14 14 11 9 Processor 2 | . . . . 9 Protection 15 | . . . 21 10 Ballistic Gun 15 | . 14 14 16 14 Launcher 4 | . 12 14 4 . Naked Turns . | . . . . . Heaviest Build 47 | 10 13 13 47 36 Greatest Support 40 | 40 40 40 40 40 Greatest Overweight (x) 5 | . . . 1 5 Average Overweight (x) . | . . . . 1 Largest Inventory Capacity 15 | 8 8 8 15 10 Average Capacity 9 | 7 8 8 9 10 Most Carried 9 | 5 2 2 9 9 Average Carried 6 | 1 1 2 7 7 Final Capacity 10 | 8 8 8 10 10 Final Carried 9 | 1 2 2 9 7 Class Distribution -------------------- 100% | Mutant Dominant Class ---------------- Mutant | -10/Materials Mutant | -10/Mines Mutant | -9/Materials Mutant | -8/Materials Resources | -11 -10 -10 -9 -8 ----------- Run | Yrd Mat Min Mat Mat Matter Collected 1025 | 223 . . 482 320 Remotely 103 | . . . . 103 Salvage Created 852 | . 61 . 521 270 Parts 61 | . 3 . 46 12 Haulers Intercepted . | . . . . . Recyclers Shooed 3 | . . . 3 . Parts Field Recycled . | . . . . . Retrieved Matter . | . . . . . Parts Self-Destructed . | . . . . . Prevented . | . . . . . Kills | -11 -10 -10 -9 -8 ------- Run | Yrd Mat Min Mat Mat Combat Hostiles Destroyed 23 | . 2 . 15 6 Guns 16 | . . . 10 6 AOE 7 | . 2 . 5 . Classes Destroyed 7 | . 2 . 5 . Builder 2 | . 1 . 1 . Recycler 2 | . . . 1 1 Watcher 4 | . . . 4 . Swarmer 9 | . . . 6 3 Grunt 11 | . 2 . 6 3 Duelist 1 | . . . 1 . Sentry 2 | . . . 2 . Best Kill Streak 4 | . 3 . 4 4 Combat Bots Only 3 | . 2 . 3 3 Max Kills in Single Turn 2 | . 2 . 2 1 Gunslinging . | . . . . . Exploded 2 | . 1 . 2 . Melee . | . . . . . Uniques/NPCs Destroyed . | . . . . . Combat | -11 -10 -10 -9 -8 -------- Run | Yrd Mat Min Mat Mat Hostile Shots Fired 255 | . 5 . 91 159 Missed 64 | . 2 . 26 36 Damage Taken 2278 | . 40 . 585 1653 Core 591 | . . . 31 560 Absorbed by Shields 177 | . . . 177 . Core Remaining (%) 97 | 100 . 100 92 . Volleys Fired 121 | . 4 . 58 59 Largest 2 | . 1 . 2 1 Hottest 55 | . 30 . 55 25 Shots Fired 122 | . 4 . 59 59 Gun 111 | . . . 52 59 Cannon . | . . . . . Launcher 11 | . 4 . 7 . Special . | . . . . . Kinetic 111 | . . . 52 59 Thermal . | . . . . . Explosive 11 | . 4 . 7 . Electromagnetic . | . . . . . Robot Hit Streak 9 | . 2 . 9 5 Robot Miss Streak 5 | . 1 . 3 5 Penetration Max . | . . . . . Secondary Targets . | . . . . . Shots Hit Robots 73 | . 3 . 38 32 Core Hits 49 | . 5 . 34 10 Critical Kills 1 | . . . . 1 Critical Parts Destroyed . | . . . . . Critical Strikes 1 | . . . . 1 Destroy 1 | . . . . 1 Melee Attacks . | . . . . . Impact . | . . . . . Slashing . | . . . . . Piercing . | . . . . . Sneak Attacks . | . . . . . Combat Hostiles . | . . . . . Follow-up Attacks . | . . . . . Damage Inflicted 1908 | . 217 . 1055 636 Guns 1241 | . . . 605 636 Cannons . | . . . . . Explosions 667 | . 217 . 450 . Melee . | . . . . . Ramming . | . . . . . Kinetic 1241 | . . . 605 636 Thermal . | . . . . . Explosive 667 | . 217 . 450 . Electromagnetic . | . . . . . Impact . | . . . . . Slashing . | . . . . . Piercing . | . . . . . Highest Corruption . | . . . . . Average Corruption . | . . . . . Corruption Purged . | . . . . . Corruption Blocked . | . . . . . Overload Shots . | . . . . . Overflow Damage 33 | . 5 . 28 . Projectiles . | . . . . . Explosions 33 | . 5 . 28 . Melee . | . . . . . Knockbacks . | . . . . . Impact . | . . . . . Kinetic . | . . . . . Secondary . | . . . . . Self-Inflicted Damage 33 | . . . 33 . Shots 2 | . . . 2 . Rammed . | . . . . . Targets Rammed . | . . . . . Kicked . | . . . . . Crushed . | . . . . . Highest Temperature 185 | . 1 . 43 185 Average Temperature 35 | . 1 . 16 61 Received Heat Transfer 1056 | . 21 . 180 855 Siege Activations . | . . . . . Robots Corrupted . | . . . . . Combat Hostiles . | . . . . . Parts Fried . | . . . . . Impact Corruptions . | . . . . . Robots Melted . | . . . . . Combat Hostiles . | . . . . . Parts Melted . | . . . . . Heat Transferred . | . . . . . Parts Sabotaged . | . . . . . Parts Stolen . | . . . . . Parts Stripped . | . . . . . Power Chain Reactions . | . . . . . Alert | -11 -10 -10 -9 -8 ------- Run | Yrd Mat Min Mat Mat Peak Influence 349 | . 72 27 349 233 Initial 72 | . . 27 10 72 Average 148 | . 9 27 187 168 Maximum Alert Level 1 | . . . 1 1 Low Security (%) 62 | 100 100 100 51 59 Level 1 37 | . . . 48 40 Level 2 . | . . . . . Level 3 . | . . . . . Level 4 . | . . . . . Level 5 . | . . . . . High Security . | . . . . . Max Security . | . . . . . Squads Dispatched 2 | . . . 1 1 Investigation 1 | . . . 1 . Extermination . | . . . . . Reinforcement 1 | . . . . 1 Assault . | . . . . . Garrison . | . . . . . Intercept . | . . . . . Searches Triggered . | . . . . . Construction Impeded . | . . . . . Haulers Reinforced . | . . . . . Active Scanning Responses . | . . . . . Cargo Convoy Interrupts . | . . . . . Stealth | -11 -10 -10 -9 -8 --------- Run | Yrd Mat Min Mat Mat Distress Signals 4 | . . . 2 2 Communications Jammed . | . . . . . Distress Signals . | . . . . . Times Spotted 44 | . 4 . 23 17 Peak Tracking Total 8 | . 3 . 8 5 Tactical Retreats 3 | . . . 1 2 Traps | -11 -10 -10 -9 -8 ------- Run | Yrd Mat Min Mat Mat Traps Triggered . | . . . . . Indirectly . | . . . . . Trap Hack Attempts . | . . . . . Triggered . | . . . . . Disarmed . | . . . . . Reprogrammed . | . . . . . Reused . | . . . . . Traps Extracted . | . . . . . Installed . | . . . . . Triggered . | . . . . . Machines | -11 -10 -10 -9 -8 ---------- Run | Yrd Mat Min Mat Mat Machines Disabled 2 | . . . 1 1 Max in Single Turn 1 | . . . 1 1 Machines Repaired . | . . . . . Machines Dismantled . | . . . . . Machines Sabotaged . | . . . . . Overloaded Fab Kills . | . . . . . Hacking | -11 -10 -10 -9 -8 --------- Run | Yrd Mat Min Mat Mat Machines Accessed 2 | . 1 . 1 . Terminals 2 | . 1 . 1 . Fabricators . | . . . . . Repair Stations . | . . . . . Recycling Units . | . . . . . Scanalyzers . | . . . . . Garrison Access . | . . . . . Total Hacks 4 | . 1 . 3 . Successful 3 | . 1 . 2 . Failed . | . . . . . Catastrophic . | . . . . . Database Lockouts 1 | . . . 1 . Manual . | . . . . . Terminals 4 | . 1 . 3 . Fabricators . | . . . . . Repair Stations . | . . . . . Recycling Units . | . . . . . Scanalyzers . | . . . . . Garrison Access . | . . . . . Terminal Hacks 3 | . 1 . 2 . Record 3 | . 1 . 2 . Fabricator Hacks . | . . . . . Repair Station Hacks . | . . . . . Recycling Unit Hacks . | . . . . . Scanalyzer . | . . . . . Garrison Access Hacks . | . . . . . Unauthorized Hacks . | . . . . . Terminals . | . . . . . Fabricators . | . . . . . Repair Stations . | . . . . . Recycling Units . | . . . . . Scanalyzers . | . . . . . Garrison Access . | . . . . . Data Cores Recovered . | . . . . . Used . | . . . . . Hacking Detections 1 | . . . 1 . Full Trace Events 1 | . . . 1 . Feedback Events . | . . . . . Feedback Blocked . | . . . . . Robot Schematics Acquired . | . . . . . Robots Built . | . . . . . Authchips . | . . . . . Time . | . . . . . Total Robot Build Rating . | . . . . . Part Schematics Acquired . | . . . . . Parts Built . | . . . . . Authchips . | . . . . . Time . | . . . . . Total Part Build Rating . | . . . . . Parts Repaired . | . . . . . Time . | . . . . . Parts Recycled . | . . . . . Recycled Matter . | . . . . . Retrieved Matter . | . . . . . Retrieved Components . | . . . . . Parts Scanalyzed . | . . . . . Part Schematics Acquired . | . . . . . Parts Damaged . | . . . . . Bothacking | -11 -10 -10 -9 -8 ------------ Run | Yrd Mat Min Mat Mat Used RIF Installer . | . . . . . Robots Hacked . | . . . . . Non-combat . | . . . . . Combat . | . . . . . Robot Hacks Applied . | . . . . . Relay Couplers Released . | . . . . . Fabnet Peak Effective % . | . . . . . Robots Rewired . | . . . . . Allies Hacked . | . . . . . Hacks Repelled . | . . . . . Allies | -11 -10 -10 -9 -8 -------- Run | Yrd Mat Min Mat Mat Total Allies . | . . . . . Largest Group . | . . . . . Highest-Rated Group . | . . . . . Highest-Rated Ally . | . . . . . Total Orders . | . . . . . Ally Attacks . | . . . . . Total Damage . | . . . . . Kills . | . . . . . Allies Corrupted . | . . . . . Allies Melted . | . . . . . Intel | -11 -10 -10 -9 -8 ------- Run | Yrd Mat Min Mat Mat Robot Analysis Total . | . . . . . Derelict Logs Recovered . | . . . . . Drone Launches . | . . . . . Drone Recoveries . | . . . . . Exploration | -11 -10 -10 -9 -8 ------------- Run | Yrd Mat Min Mat Mat Turns Passed 1535 | 67 144 89 862 373 Spaces Moved 629 | 43 84 52 324 126 Core 55 | 16 . . . 39 Treads 574 | 27 84 52 324 87 Legs . | . . . . . Wheels . | . . . . . Hover . | . . . . . Flight . | . . . . . Fastest Speed 50 | 50 160 160 160 160 Average Speed 162 | 119 160 160 160 184 Slowest Speed 300 | 160 160 160 240 300 Overloaded Moves . | . . . . . Propulsion Burnouts . | . . . . . Robots Hopped . | . . . . . Cave-ins Triggered . | . . . . . Exploration Rate (%) 16 | 4 21 17 27 12 Regions Visited 4 Branch Regions 1 Pre-discovered Areas . | . . . . . Known Exits Taken . | . . . . . Unknown Exits Taken 4 | 1 1 1 1 . Scrap Searched . | . . . . . Spaces Dug . | . . . . . Terrain Destroyed 58 | . 16 . 42 . Melee . | . . . . . Projectile . | . . . . . AOE 58 | . 16 . 42 . Terrain Rammed . | . . . . . Walls Destroyed . | . . . . . Machines Disabled . | . . . . . Actions | -11 -10 -10 -9 -8 --------- Run | Yrd Mat Min Mat Mat Total 1033 | 59 90 58 612 214 Wait 227 | 6 . 7 193 21 Move 625 | 42 83 51 323 126 Hop . | . . . . . Pick Up 26 | 6 2 . 16 2 Fast Attach . | . . . . . Attach 16 | 5 1 . 7 3 Detach 2 | . . . 2 . Swap 11 | . . . 9 2 Drop 5 | . . . 4 1 Fire 121 | . 4 . 58 59 Melee . | . . . . . Ram . | . . . . . Kick . | . . . . . Crush . | . . . . . Escape Stasis . | . . . . . Rewire . | . . . . . Trap . | . . . . . Miscellaneous . | . . . . . Route ------- -11/Scrapyard -10/Materials -10/Mines -9/Materials -8/Materials History --------- Turn | Location | Event 7 | -11/Scrapyard | Discovered new exit (range 16) 68 | -11/Scrapyard | Entered Materials 176 | -10/Materials | Discovered new exit (range 8) 212 | -10/Materials | Entered Mines 287 | -10/Mines | Discovered new exit (range 8) 301 | -10/Mines | Entered Materials 301 | -9/Materials | Evolved 2 slots: Utility x2 314 | -9/Materials | Build established: Mutant 524 | -9/Materials | Central database locked down 1127 | -9/Materials | Discovered new exit (range 16) 1163 | -9/Materials | Entered another Materials area 1163 | -8/Materials | Evolved 2 slots: Power x1, Utility x1 1408 | -8/Materials | Lost 5 parts (1p2n2u) 1466 | -8/Materials | Core integrity fell below 50% 1516 | -8/Materials | Lost 5 parts (1n2u2w) 1521 | -8/Materials | Core integrity fell below 20% 1536 | -8/Materials | Destroyed by G-47 Trooper with Particle Gun Last Messages --------------- Acquired 34 matter. R-06 Scavenger collects Com. Wheel. R-06 Scavenger collects Hvy. Assault Rifle. R-06 Scavenger collects Particle Gun. Acquired 4 matter. W-25 Informer sends out distress signal. U-05 Engineer builds a Door. Hrd. Medium Armor Plating destroyed. K-01 Serf collects debris. Lgt. Treads destroyed. Critical hit (Burn: +37). Hvy. Assault Rifle destroyed. S-10 Pest suffers critical hit (Destroy). S-10 Pest destroyed. Acquired 11 matter. [Achievement: Use The Force] Minigun destroyed. Tractor Beam destroyed. K-01 Serf collects debris. [Achievement: First Step to Greatness] Map ----- +----------------------------------------------------+ | | | | | | | | | | | | | | | | | | | | | | | | | | | | | | | | | ????????????????????????????????????????????????? | | ????????????????????????????????????????????????? | | ????????????????????????????????????????????????? | | ????????????????????????????????????????????????? | | ???????????????????###########??????????????????? | | ???????????????????# ! T #??????????????????? | | ???????#??????###### #??????????????????? | | ???????# ##### # #??????????????????? | | ???????+ #g #??????????????????? | | ???????# + @ #??????????????????? | | ?????????+##+## # """ """ #??????????????????? | | ??????????????## ## """ """ #??????????????????? | | ???????????????# ## """ """ #??????????????????? | | ???????????????# ############??????????????????? | | ???????????????# #?????????????????????????????? | | ???????????????# #?????????????????????????????? | | ???????????????# #?????????????????????????????? | | ???????????????# ####################??????????? | | ???????????????# ????????? | | ??????#######??# * ????????? | | ??????# ?# = = ????????? | | ??????# ?# ##############/###???????????? | | ??????# # #????????????????????????????? | | ??????# # #????????????????????????????? | | ?????????? + ########?????????????????????? | | ????????????? # # " #?????????????????????? | | ???????????? # # #?????????????????????? | | ??????????? ?# # #?????????????????????? | | ?????????? ??# # #?????????????????????? | | ?????????####??# # %#?????????????????????? | | ???????????????# # #?????????????????????? | | ???????????????# ###+####?????????????????????? | | ???????????????# #########?????????????? | | ???????????????# ?????????? | +----------------------------------------------------+ Best States ------------- Heat Dissipation 31 Energy Generation 10 Energy Capacity 125 Matter Stores 300 Matter Capacity 300 Sight Range 18 Robot Scan Range 14 Terrain Scan Density 10 Armor Coverage 450 Evasion (%) 50 Recoil Reduction 2 Item Schematics ----------------- None Robot Schematics ------------------ None Fabricated ------------ Nothing Alien Tech Used ----------------- None Achievements -------------- First Step to Greatness One Hack Too Far Storm Trooper Use The Force Challenges ------------ None Game ------ Seed DecoderRelayAnalyzer Manual? 0 Play Time 00:29:48 Cumulative 1.2 hours Start 2024.07.06 @ 14:21:25 End 2024.07.06 @ 14:51:39 Sessions 1 Manual Loads 0 Difficulty Rogue Special Mode None Game No. 3 Rogue 2 Adventurer 1 Explorer 0 Win Type - Total 0 Types 0/0/0/0/0/0/0/0/0 Lore% 0 Gallery% 4 Achievement% 4 Wizard Run 0 Options --------- Layout 1 ASCII 0 Keyboard 0 Movement Mouse Keybinds 0 Fullscreen 2 Font 24/Smallcaps Map View 50x35 Zoom Use 0% Tactical HUD 0 Map Filters NONE Filters NONE Steam 1 RUN: 5125eb85-e3e6-44ac-a66c-942ac02722b7